bitfinex/quotes_ETHUSD_20250925
["timestamp","ask_amount","ask_price","bid_price","bid_amount"]
[1758831509748,4.98616302,3901.6,3901.5,0.002]
[1758831509926,4.98616302,3901.6,3901.5,0.2516]
[1758831509927,6.1853398,3901.6,3901.5,0.2516]
[1758831510128,1e-08,3902.0,3901.5,0.7178]
[1758831510321,6.98491957,3901.9,3901.6,0.7158]
[1758831510521,0.56447027,3901.8,3901.6,0.7158]
[1758831510728,3.12739228,3901.8,3901.6,0.7158]
[1758831511131,0.128,3901.6,3901.5,0.002]
[1758831511449,0.15362475,3901.6,3901.5,0.002]
[1758831511750,0.15362475,3901.6,3901.5,3.28091674]
[1758831511951,0.128,3901.6,3901.5,3.86533307]
[1758831512533,0.02562476,3902.0,3901.9,2.56285399]
[1758831512534,1e-08,3902.0,3901.9,2.56285399]
[1758831512730,0.001,3902.4,3902.3,2.56259129]
[1758831512960,0.129,3902.4,3902.3,2.56259129]
[1758831513257,0.129,3902.4,3902.3,3.27839129]
[1758831513460,0.129,3902.4,3902.3,3.53595358]
[1758831514264,0.001,3902.8,3902.7,2.56232864]
[1758831514651,0.001,3902.8,3902.7,7.82712864]
[1758831515467,0.001,3902.8,3902.7,10.16112864]
[1758831516251,0.001,3902.8,3902.7,8.61912864]
[1758831516561,0.001,3902.8,3902.7,9.20354497]
[1758831517347,0.001,3902.8,3902.7,12.20354497]
[1758831517550,0.001,3902.8,3902.7,18.87754497]
[1758831518071,0.001,3902.8,3902.7,20.29154497]
[1758831518238,0.02562475,3905.5,3902.9,1.542]
[1758831518573,0.02562475,3905.5,3902.8,3.0]
[1758831518574,0.02562475,3905.5,3903.7,0.792]
[1758831518872,0.001,3905.6,3903.0,3.3329836]
[1758831518873,0.001,3905.6,3903.9,3.792]
[1758831519071,0.001,3905.6,3904.8,2.56093535]
[1758831519273,0.001,3905.6,3905.5,2.56049161]
[1758831519750,0.001,3905.6,3905.5,3.30189652]
[1758831520160,0.001,3905.6,3905.5,7.72089652]
[1758831520358,0.001,3905.6,3905.5,12.07170794]
[1758831520978,0.02562475,3907.6,3905.7,0.792]
[1758831521174,0.02562475,3907.6,3907.0,2.55950622]
[1758831521368,0.02562475,3907.6,3906.9,3.27537408]
[1758831521676,0.02562475,3907.6,3906.9,0.7158]
[1758831521978,0.001,3907.7,3906.9,0.7158]
[1758831521979,0.001,3907.7,3907.0,0.27519508]
[1758831522288,0.001,3907.7,3907.6,2.55911556]
[1758831522472,0.001,3908.1,3908.0,2.55885363]
[1758831522672,0.001,3908.6,3908.5,2.55852628]
[1758831522983,0.001,3908.6,3908.5,6.97552628]
[1758831523203,0.001,3909.0,3908.9,2.55826447]
[1758831523396,0.001,3909.0,3908.5,8.27574261]
[1758831523397,0.02562475,3910.5,3909.2,2.5580068]
[1758831523697,0.02562475,3910.5,3909.1,0.2496]
[1758831523855,3.0,3910.2,3908.7,6.97539537]
[1758831524063,0.02662475,3910.1,3908.7,4.417]
[1758831524262,0.0277,3910.0,3908.5,0.4662]
[1758831524464,2.55825206,3909.0,3908.0,0.4662]
[1758831524658,0.02562475,3908.9,3908.0,0.4662]
[1758831525044,2.55825807,3909.0,3908.0,0.4662]
[1758831525251,0.02562475,3908.9,3908.0,0.4662]
[1758831525447,0.02662475,3909.2,3908.2,2.55870049]
[1758831525679,0.66023248,3909.1,3907.8,0.797]
[1758831525885,0.02562475,3909.0,3907.9,0.7158]
[1758831526081,0.02562475,3909.0,3908.1,2.55877444]
[1758831526482,0.02562475,3909.0,3907.9,3.27469536]
[1758831526483,0.02562475,3909.0,3908.2,2.55869108]
[1758831526684,0.02562475,3909.0,3907.9,0.7158]
[1758831526987,0.001,3910.2,3909.1,2.55807763]
[1758831527152,2.58319251,3910.0,3909.0,0.2496]
[1758831527358,0.02562475,3910.0,3909.1,2.55808252]
[1758831527569,0.02562475,3910.0,3909.0,2.80779546]
[1758831527766,0.02562475,3910.3,3909.1,0.7158]
[1758831527966,2.98462475,3910.7,3909.2,0.7037]
[1758831528200,2.98462475,3910.7,3909.1,4.414]
[1758831528201,0.1272,3909.9,3909.3,3.38886447]
[1758831528774,0.1272,3909.9,3909.3,0.8309]
[1758831528969,0.02562475,3909.8,3909.1,4.414]
[1758831529300,0.1272,3909.4,3909.3,2.55800271]
[1758831529473,0.1272,3909.4,3909.3,3.26170271]
[1758831529669,0.1272,3909.4,3909.3,0.7037]
[1758831530006,0.1272,3909.4,3908.4,2.55858066]
[1758831530007,0.1272,3909.4,3908.4,2.55854103]
[1758831530172,0.1272,3908.9,3908.3,7.09885721]
[1758831530373,0.1272,3908.9,3908.3,7.57325721]
[1758831530785,0.1272,3908.9,3908.5,2.55847618]
[1758831531105,2.55749492,3910.1,3909.3,2.55798671]
[1758831531303,0.1272,3909.4,3909.1,0.7037]
[1758831531903,0.1272,3909.4,3909.3,2.55800271]
[1758831532570,0.1272,3909.4,3909.3,3.26170271]
[1758831533500,0.1272,3909.4,3909.3,3.03240271]
[1758831533797,0.001,3910.0,3909.7,2.5576856]
[1758831534002,0.001,3910.0,3909.4,0.02557937]
[1758831534203,0.001,3910.0,3909.8,0.7037]
[1758831534403,0.001,3910.0,3909.3,4.412]
[1758831534713,0.1272,3909.4,3909.1,3.26177399]
[1758831535032,0.1272,3909.4,3909.3,2.55800271]
[1758831535541,0.1272,3909.4,3909.3,2.78730271]
[1758831536099,0.1272,3909.4,3909.1,0.4744]
[1758831536419,0.1272,3909.4,3909.1,2.55812906]
[1758831536620,0.1272,3909.4,3909.0,2.56019252]
[1758831536826,0.1272,3909.4,3909.0,0.002]
[1758831537008,0.1272,3909.4,3909.2,2.55802508]
[1758831537497,0.1272,3909.4,3909.0,2.56019164]
[1758831537697,0.1272,3909.4,3909.3,2.55800271]
[1758831539034,0.1272,3909.6,3909.5,2.55782608]
[1758831539235,0.1272,3909.6,3909.5,3.26152608]
[1758831539439,0.1272,3909.6,3909.5,2.55782608]
[1758831539805,0.1272,3909.6,3909.5,2.55787185]
[1758831540323,0.1272,3909.6,3909.5,3.26157185]
[1758831540634,0.001,3911.1,3911.0,3.34889082]
[1758831540833,0.001,3911.1,3911.0,6.37445972]
[1758831541033,0.001,3911.1,3911.0,13.60959082]
[1758831541835,0.001,3911.1,3911.0,12.81759082]
[1758831542142,0.001,3911.1,3911.0,7.424]
[1758831542308,0.001,3911.1,3911.0,10.68459082]
[1758831543075,0.001,3911.1,3911.0,3.0]
[1758831543221,0.001,3911.1,3910.5,0.4744]
[1758831543222,0.001,3911.1,3910.5,3.607]
[1758831543425,0.001,3911.1,3910.6,2.55711494]
[1758831543730,0.001,3911.1,3910.5,3.607]
[1758831544061,0.25706962,3911.1,3910.5,3.607]
[1758831544479,0.001,3911.1,3910.7,2.55706243]
[1758831544938,0.001,3911.1,3910.6,2.55710587]
[1758831545141,0.001,3911.1,3910.7,0.02557086]
[1758831545357,0.001,3911.1,3911.0,2.55689082]
[1758831545740,0.001,3911.1,3911.0,2.80139082]
[1758831545946,0.001,3911.1,3911.0,3.27149082]
[1758831546455,0.001,3911.1,3911.0,3.29705972]
[1758831546862,0.001,3911.1,3911.0,3.27149082]
[1758831547026,0.001,3911.5,3911.3,0.792]
[1758831547227,0.40092113,3912.8,3912.7,2.55577989]
[1758831547458,2.55499629,3913.9,3912.9,2.55564382]
[1758831547752,4.34498197,3914.0,3912.7,4.6745]
[1758831547753,2.55525833,3913.5,3912.7,4.43]
[1758831547940,2.55524574,3913.6,3912.7,6.9857728]
[1758831548142,0.51113359,3913.5,3912.8,2.55571308]
[1758831548318,2.55520237,3913.6,3912.8,2.55571308]
[1758831548525,2.5553797,3913.4,3912.3,4.43]
[1758831548752,0.0327,3913.5,3912.5,2.55585024]
[1758831548964,2.58797398,3913.5,3912.4,2.55596839]
[1758831549145,1.82271595,3913.5,3912.3,4.43]
[1758831549326,0.73779126,3913.4,3912.4,0.2445]
[1758831549528,0.73779126,3913.4,3912.9,2.55560387]
[1758831549751,3.0,3913.7,3912.9,2.55560387]
[1758831550037,5.55512817,3913.7,3912.9,2.55560387]
[1758831550242,1.79001595,3913.6,3912.3,0.2445]
[1758831550442,0.1272,3913.0,3912.6,2.5557892]
[1758831550672,1.79001595,3913.4,3911.0,0.4701]
[1758831550873,0.1790016,3913.5,3912.9,2.55563372]
[1758831551196,1.79001595,3913.8,3912.9,1.643]
[1758831551487,0.001,3913.7,3912.7,4.447]
[1758831551696,0.001,3913.7,3912.7,7.00272026]
[1758831551902,0.001,3913.7,3913.3,2.55533714]
[1758831552052,0.001,3913.7,3913.5,2.55520983]
[1758831552384,0.001,3913.7,3913.3,2.55532423]
[1758831552586,0.53804552,3913.6,3913.5,2.55525744]
[1758831553343,0.53804552,3913.6,3913.5,3.26985744]
[1758831555653,0.001,3913.7,3913.6,2.55519215]
[1758831556858,0.001,3913.7,3913.6,6.29534407]
[1758831557071,0.001,3913.7,3913.6,6.26979215]
[1758831557983,0.001,3913.7,3913.6,9.13119215]
[1758831558853,0.001,3913.7,3913.6,9.36999215]
[1758831559046,0.001,3913.7,3913.6,9.80399215]
[1758831559667,0.001,3913.7,3913.6,13.59599215]
[1758831559863,1.79020261,3916.6,3915.5,2.55392331]
[1758831560080,0.22341014,3916.6,3915.9,2.55368332]
[1758831560276,0.22341014,3916.6,3915.4,2.55400568]
[1758831560459,3.0,3916.6,3915.7,4.448]
[1758831560652,2.55311871,3916.8,3915.7,7.00181773]
[1758831560855,2.55327319,3916.6,3915.8,2.55373795]
[1758831561080,2.5531888,3916.7,3915.7,4.448]
[1758831561307,3.0,3917.0,3915.7,4.448]
[1758831561481,3.0,3917.0,3913.5,1.542]
[1758831561482,0.7682909,3916.9,3914.4,2.98860676]
[1758831561670,0.7682909,3916.9,3915.1,4.455]
[1758831561671,0.1272,3915.2,3915.1,4.455]
[1758831562000,3.0,3916.1,3915.1,4.455]
[1758831562001,0.001,3916.1,3915.1,4.455]
[1758831562281,0.001,3916.1,3915.6,2.55388323]
[1758831562483,3.32137025,3916.9,3915.5,4.461]
[1758831562685,1.34254336,3917.4,3915.5,4.461]
[1758831562686,3.47154336,3917.4,3915.6,0.02553887]
[1758831562890,0.1272,3915.9,3915.7,2.55382179]
[1758831563051,0.001,3917.3,3916.4,2.55335647]
[1758831563250,0.001,3917.3,3915.8,0.434]
[1758831563558,0.001,3917.3,3915.9,4.463]
[1758831563759,0.25537318,3917.2,3916.5,2.55328065]
[1758831563972,0.001,3917.7,3916.5,4.468]
[1758831564181,2.55267855,3917.5,3916.6,2.55323494]
[1758831564483,3.0,3917.3,3916.5,4.468]
[1758831564686,2.55225747,3918.1,3916.5,6.597]
[1758831564887,2.55235015,3918.0,3917.0,2.55291352]
[1758831565102,3.0,3917.5,3916.5,4.474]
[1758831565402,3.0,3917.7,3916.8,2.55306627]
[1758831565600,3.0,3917.7,3916.6,2.55323494]
[1758831565601,0.25533502,3917.9,3916.6,0.434]
[1758831565803,3.0,3917.8,3916.9,2.55298998]
[1758831565983,0.25533502,3917.9,3917.2,2.55282448]
[1758831566179,0.49366228,3917.8,3917.0,2.55292819]
[1758831566505,0.49366228,3917.8,3915.6,0.792]
[1758831566506,0.001,3917.9,3916.3,0.434]
[1758831566705,0.001,3917.9,3916.5,2.55327195]
[1758831566706,2.55271057,3917.5,3916.5,2.55327195]
[1758831567005,3.0,3917.5,3916.5,2.55330014]
[1758831567173,2.55261001,3917.6,3916.8,2.55305816]
[1758831567503,2.55275945,3917.4,3916.4,0.434]
[1758831567706,0.25527595,3917.3,3916.4,0.45953365]
[1758831568125,3.0,3917.8,3916.9,2.55301576]
[1758831568406,3.12987372,3920.3,3917.5,2.55263997]
[1758831568407,0.001,3918.7,3917.5,2.55263997]
[1758831568699,0.001,3918.7,3917.2,2.128]
[1758831568904,0.001,3918.6,3916.6,7.04417085]
[1758831569105,0.001,3918.5,3917.0,2.55291846]
[1758831569305,2.128,3918.4,3917.1,2.55290903]
[1758831569608,0.001,3917.9,3917.2,0.434]
[1758831569787,0.001,3917.9,3917.3,4.495]
[1758831569973,0.001,3917.9,3916.7,2.55314871]
[1758831570305,2.5527644,3917.4,3916.8,4.016]
[1758831570518,2.55302465,3917.0,3916.5,0.434]
[1758831570673,2.80837341,3916.9,3916.5,4.935]
[1758831571072,2.80837341,3916.9,3915.9,2.562]
[1758831571073,0.25530246,3916.9,3915.9,2.562]
[1758831571394,3.89599063,3917.9,3915.3,1.4831695]
[1758831571575,3.0,3917.7,3915.5,3.0]
[1758831571909,3.0,3917.3,3915.6,7.48687862]
[1758831572081,0.001,3917.2,3915.6,9.61487862]
[1758831572281,0.001,3917.2,3915.6,9.61487717]
[1758831572512,3.53691779,3917.6,3915.6,9.61487717]
[1758831572513,0.53691779,3917.6,3916.4,2.55336453]
[1758831572722,0.001,3917.8,3916.4,0.434]
[1758831572924,0.9628,3917.7,3916.7,2.55316596]
[1758831573425,2.129,3917.9,3916.7,2.55312467]
[1758831573636,2.129,3917.9,3916.6,0.434]
[1758831573637,0.1272,3916.7,3916.6,0.434]
[1758831573793,0.1272,3916.7,3916.6,2.98723494]
[1758831573989,0.1272,3916.7,3916.6,0.434]
[1758831574195,0.1272,3916.7,3916.3,2.98741553]
[1758831574429,0.1272,3916.7,3914.7,2.5544628]
[1758831574635,0.001,3917.6,3916.4,2.55335602]
[1758831574791,0.1272,3916.2,3916.1,2.55356094]
[1758831574988,0.1272,3916.2,3915.9,4.497]
[1758831575192,0.1272,3916.2,3916.1,4.01836094]
[1758831575425,3.64589178,3917.6,3915.7,0.434]
[1758831575603,3.64589178,3917.6,3915.3,1.2443695]
[1758831575604,0.001,3917.3,3916.3,2.55337712]
[1758831575801,0.001,3917.3,3915.9,2.9876367]
[1758831576007,0.001,3917.3,3916.2,2.55348241]
[1758831576206,0.001,3917.3,3915.9,0.434]
[1758831576390,0.001,3917.3,3915.9,2.98768881]
[1758831576593,0.001,3917.3,3916.2,2.55344914]
[1758831577131,4.18380957,3917.6,3916.4,2.5533025]
[1758831577302,0.63118096,3917.5,3916.4,2.5533025]
[1758831577507,0.63118096,3917.5,3916.5,0.459533]
[1758831577723,0.001,3917.9,3916.8,2.55306314]
[1758831578233,0.001,3917.9,3917.0,2.55292107]
[1758831578407,0.001,3917.9,3916.9,2.55303003]
[1758831578727,0.001,3917.9,3916.8,0.434]
[1758831578728,3.001,3917.9,3916.8,0.434]
[1758831579099,3.001,3917.9,3916.8,2.98708228]
[1758831579648,0.92529178,3917.8,3917.5,2.55260995]
[1758831579797,0.001,3917.9,3916.9,4.943]
[1758831580169,0.001,3917.9,3917.6,2.55257767]
[1758831580321,0.001,3917.9,3917.5,2.55262836]
[1758831580650,0.001,3917.9,3917.1,2.55290903]
[1758831580851,0.001,3917.9,3917.0,0.434]
[1758831581160,0.001,3917.9,3917.6,2.55253171]
[1758831581654,0.001,3917.9,3917.3,2.55272734]
[1758831581855,0.001,3917.9,3917.4,2.55270242]
[1758831582027,0.001,3917.9,3916.9,4.954]
[1758831582227,0.001,3917.9,3917.4,2.552671]
[1758831582439,0.001,3917.9,3917.5,2.55264016]
[1758831582609,0.001,3917.9,3916.9,4.953]
[1758831582815,0.001,3917.9,3916.9,2.552982]
[1758831583022,0.001,3917.9,3916.9,0.434]
[1758831583257,0.001,3917.9,3916.6,0.02553234]
[1758831583462,0.001,3917.9,3916.7,0.434]
[1758831583660,0.0017888,3917.7,3917.3,2.55276902]
[1758831584013,0.0017888,3917.7,3917.3,2.98676902]
[1758831584250,0.0017888,3917.7,3917.3,0.434]
[1758831584547,0.0017888,3917.7,3916.5,4.518]
[1758831584852,0.0017888,3917.7,3917.4,2.5526554]
[1758831585155,0.0017888,3917.7,3917.5,2.55264038]
[1758831585352,0.0017888,3917.7,3917.6,2.55258321]
[1758831585715,0.0017888,3917.7,3917.6,2.98658321]
[1758831587050,0.0017888,3917.7,3916.9,1.21303165]
[1758831587253,1e-08,3917.3,3917.2,3.79933898]
[1758831587754,1e-08,3917.3,3917.2,3.81598771]
[1758831588114,1e-08,3917.3,3917.2,4.28788771]
[1758831588318,1e-08,3917.3,3917.2,1.26314385]
[1758831588554,1e-08,3917.3,3917.1,1.27724839]
[1758831588848,0.53691779,3917.8,3917.4,2.55265176]
[1758831589051,0.53691779,3917.7,3917.4,2.55265176]
[1758831589252,0.53691779,3917.8,3917.4,2.55265176]
[1758831589456,0.53691779,3917.7,3917.3,1.22908812]
[1758831589663,1e-08,3917.4,3917.2,1.26314385]
[1758831589822,0.001,3917.9,3917.2,1.26314385]
[1758831590150,0.89599063,3917.9,3916.9,1.26275291]
[1758831590351,0.2250534,3917.9,3917.1,1.27724839]
[1758831590555,0.001,3917.9,3917.8,2.5524529]
[1758831590721,0.001,3917.9,3917.8,3.0243529]
[1758831591776,0.001,3917.9,3917.8,8.58857742]
[1758831591943,0.001,3918.1,3918.0,2.55232261]
[1758831592138,0.001,3918.3,3918.2,2.55219233]
[1758831592378,0.001,3918.3,3918.2,2.57771425]
[1758831592580,0.001,3918.3,3918.2,3.29131425]
[1758831592777,0.001,3918.3,3918.2,2.57771425]
[1758831592942,0.001,3918.3,3918.2,3.02409233]
[1758831593143,0.001,3918.5,3918.4,2.55206206]
[1758831593442,0.89499063,3920.6,3918.3,0.7136]
[1758831593762,0.89499063,3920.5,3918.8,3.792]
[1758831594072,0.89499063,3920.5,3919.0,2.55167134]
[1758831594373,0.89499063,3920.7,3919.7,2.55119604]
[1758831594584,0.38989906,3920.6,3919.4,4.534]
[1758831594761,0.38989906,3920.6,3919.7,2.55118593]
[1758831594964,0.89499063,3920.7,3919.5,0.4719]
[1758831595275,4.34254336,3920.9,3919.0,2.55162277]
[1758831595276,0.89499063,3920.3,3919.0,2.55162277]
[1758831595476,0.89499063,3920.2,3919.0,2.55167134]
[1758831595776,0.004,3920.2,3918.8,2.99978135]
[1758831595940,0.89499063,3920.1,3918.5,0.4719]
[1758831596275,0.38989906,3920.0,3918.5,0.2417]
[1758831596448,5.127,3920.5,3919.3,2.5514591]
[1758831596640,5.127,3920.5,3919.3,2.55147602]
[1758831596842,5.127,3920.5,3919.6,2.55126269]
[1758831597270,2.127,3920.5,3919.5,2.55132546]
[1758831597471,2.127,3920.5,3919.4,2.55140208]
[1758831597688,2.127,3920.5,3919.2,0.4719]
[1758831597689,1.05959906,3920.4,3919.1,2.55159095]
[1758831597976,2.131,3920.4,3919.0,2.55166744]
[1758831598182,3.004,3920.3,3918.8,0.4719]
[1758831598481,3.004,3920.3,3918.8,2.55179408]
[1758831598482,0.796,3920.2,3918.8,2.55179408]
[1758831598679,0.796,3920.2,3918.5,0.4719]
[1758831598680,0.004,3920.1,3918.6,2.55193181]
[1758831598891,0.004,3920.1,3918.8,2.55174013]
[1758831599062,0.46909906,3920.0,3918.6,2.55192633]
[1758831599261,0.46909906,3920.0,3918.5,0.4719]
[1758831599458,0.004,3919.9,3918.5,3.02387956]
[1758831599662,0.1272,3918.5,3918.1,0.4719]
[1758831599877,0.1272,3918.2,3918.1,3.02415747]
[1758831600077,0.1272,3918.2,3917.5,0.4719]
[1758831600386,0.1272,3918.2,3916.4,2.55330248]
[1758831600387,0.1272,3917.5,3917.0,0.4719]
[1758831600688,0.67994044,3918.5,3917.1,0.4719]
[1758831600898,0.1272,3917.1,3916.3,3.02527112]
[1758831601069,0.1272,3917.1,3916.5,2.55329725]
[1758831601258,0.1272,3916.6,3916.4,2.55334561]
[1758831601454,2.126,3917.5,3916.5,0.4719]
[1758831601656,0.1272,3916.3,3916.1,0.002]
[1758831601976,2.126,3917.5,3916.1,2.55555357]
[1758831602179,3.81678653,3917.4,3916.1,0.002]
[1758831602709,4.35761557,3917.4,3916.1,0.002]
[1758831602907,1.35761557,3917.4,3916.1,0.002]
[1758831603189,3.0,3917.2,3916.1,0.002]
[1758831603401,3.54082904,3917.2,3916.1,0.002]
[1758831603691,1.16906519,3917.1,3916.1,0.002]
[1758831603994,0.792,3917.0,3916.1,0.002]
[1758831604166,1.16906519,3917.1,3916.1,0.002]
[1758831604167,3.0,3916.8,3916.1,0.002]
[1758831604370,3.54082904,3916.8,3916.1,0.002]
[1758831604704,1.0213829,3916.7,3916.1,0.002]
[1758831604889,1.0253829,3916.7,3916.1,0.002]
[1758831605255,0.6760363,3916.5,3916.1,0.002]
[1758831605796,0.54082904,3916.6,3916.1,0.002]
[1758831605797,0.6760363,3916.4,3916.1,0.002]
[1758831606163,0.004,3916.3,3916.1,0.002]
[1758831606529,4.539,3916.2,3916.1,0.002]
[1758831606675,6.52893993,3916.2,3916.1,0.002]
[1758831606875,10.06976897,3916.2,3916.1,0.002]
[1758831607109,5.53476897,3916.2,3916.1,0.002]
[1758831607320,11.52373267,3916.2,3916.1,0.002]
[1758831608775,4.85873267,3916.2,3916.1,0.002]
[1758831609111,10.18190363,3916.2,3916.1,0.002]
[1758831609879,10.72523354,3916.2,3916.1,0.002]
[1758831610079,11.51723354,3916.2,3916.1,0.002]
[1758831611279,4.85723354,3916.2,3916.1,0.002]
[1758831611481,10.97490363,3916.2,3916.1,0.002]
[1758831611681,10.71823354,3916.2,3916.1,0.002]
[1758831611882,4.06123354,3916.2,3916.1,0.002]
[1758831612118,10.17790363,3916.2,3916.1,0.002]
[1758831614595,10.96990363,3916.2,3916.1,0.002]
[1758831614797,8.04690363,3916.2,3916.1,0.002]
[1758831615802,8.83890363,3916.2,3916.1,0.002]
[1758831616003,8.84290363,3916.2,3916.1,0.002]
[1758831616217,8.83890363,3916.2,3916.1,0.002]
[1758831617888,8.84290363,3916.2,3916.1,0.002]
[1758831618710,33.59449363,3916.2,3916.1,0.002]
[1758831618931,38.84290363,3916.2,3916.1,0.002]
[1758831619248,8.83890363,3916.2,3916.1,0.002]
[1758831619527,3.52190363,3916.2,3916.1,0.002]
[1758831619828,9.648,3916.2,3916.1,0.4381]
[1758831620029,11.71,3916.2,3916.1,0.4381]
[1758831620620,14.71,3916.2,3916.1,0.4381]
[1758831620826,14.71,3916.2,3916.1,0.002]
[1758831622009,10.19,3916.2,3916.1,0.002]
[1758831622240,0.001,3917.4,3916.2,4.09549573]
[1758831622453,0.001,3917.4,3917.3,2.55277869]
[1758831622807,0.001,3917.4,3917.3,3.21527869]
[1758831623241,0.001,3917.4,3917.3,0.6625]
[1758831623404,0.001,3917.4,3917.3,3.21527869]
[1758831623922,0.001,3917.4,3917.3,3.24080647]
[1758831624124,0.001,3917.4,3917.3,4.58663732]
[1758831624927,0.001,3917.4,3917.3,7.6121651]
[1758831625126,0.001,3917.4,3917.3,7.58663732]
[1758831625840,0.001,3917.8,3917.7,6.34451805]
[1758831626044,1.34254336,3921.3,3919.9,2.55102617]
[1758831626045,0.40013598,3920.2,3919.9,2.55102617]
[1758831626208,0.40013598,3920.2,3920.0,0.4361]
[1758831626409,3.0,3920.4,3920.0,0.4361]
[1758831626750,0.5245,3920.3,3919.1,0.4361]
[1758831626917,0.001,3919.3,3919.1,0.4361]
[1758831627123,0.001,3919.3,3919.2,2.55154113]
[1758831627317,0.001,3919.3,3919.2,2.98764113]
[1758831627517,0.001,3919.3,3919.2,3.21404113]
[1758831628111,0.001,3919.3,3919.2,2.98764113]
[1758831628315,0.001,3919.3,3919.2,2.55154113]
[1758831628845,0.001,3919.3,3918.9,0.4361]
[1758831629046,0.001,3919.3,3917.1,2.55285031]
[1758831629047,0.001,3919.3,3918.4,2.98814477]
[1758831629246,0.001,3919.3,3918.8,2.55175068]
[1758831629735,0.001,3919.3,3918.6,2.55192235]
[1758831629939,0.001,3919.3,3918.7,2.55186379]
[1758831630144,0.001,3919.3,3918.4,0.4361]
[1758831630537,0.001,3919.3,3918.7,2.55183658]
[1758831630732,0.001,3919.3,3918.5,2.55194918]
[1758831630955,0.6674,3919.2,3918.4,0.4361]
[1758831631133,0.6674,3919.2,3918.6,2.55193148]
[1758831631334,0.6674,3919.2,3918.7,2.55182636]
[1758831631641,0.6674,3919.2,3918.8,2.5517893]
[1758831632425,0.001,3919.3,3918.6,2.55193181]
[1758831632623,0.001,3919.3,3917.6,0.4361]
[1758831632954,0.4439,3919.3,3918.1,2.55223536]
[1758831633127,0.4439,3919.3,3917.9,2.98844038]
[1758831633323,3.4439,3919.3,3917.9,0.4361]
[1758831633532,1.01139,3919.2,3917.9,0.4361]
[1758831633757,1.01139,3919.2,3917.9,2.9884876]
[1758831633964,1.01139,3919.2,3917.5,3.21514486]
[1758831633965,0.4429,3919.1,3917.5,3.21514486]
[1758831634260,0.4429,3919.1,3917.8,2.55240236]
[1758831634427,0.1272,3917.8,3917.7,2.55250892]
[1758831634628,0.1272,3917.8,3917.5,0.2264]
[1758831634848,6.4249,3918.7,3917.6,0.4361]
[1758831635158,6.4249,3918.7,3917.7,2.55251122]
[1758831635538,0.1272,3917.7,3917.2,2.98889489]
[1758831635747,0.4429,3918.6,3916.9,0.6625]
[1758831636058,0.1272,3917.4,3917.1,2.55288229]
[1758831636231,0.1272,3917.4,3917.1,2.98898229]
[1758831636432,0.1272,3917.4,3917.2,2.98892498]
[1758831636834,0.2493,3921.4,3919.2,2.55154113]
[1758831637058,0.2493,3921.4,3919.2,0.2264]
[1758831637059,0.001,3919.3,3919.2,0.2264]
[1758831637260,0.001,3919.3,3918.6,2.127]
[1758831637459,0.001,3919.3,3917.3,3.0]
[1758831637674,0.4429,3919.2,3917.9,0.4361]
[1758831637878,3.996,3919.1,3917.9,0.4361]
[1758831638057,3.996,3919.1,3918.4,2.55200053]
[1758831638254,3.996,3919.1,3917.9,0.4361]
[1758831638255,4.644,3919.0,3918.2,0.4361]
[1758831638591,0.001,3919.3,3919.2,2.55154113]
[1758831638939,0.001,3919.3,3919.2,2.98764113]
[1758831639839,0.001,3919.3,3919.2,7.29272546]
[1758831641369,0.2493,3922.0,3919.7,2.5511647]
[1758831641591,0.2493,3922.0,3919.2,4.74118433]
[1758831641592,2.126,3921.9,3919.9,3.792]
[1758831641783,2.126,3921.9,3921.4,2.55010037]
[1758831642144,0.6922,3921.8,3920.6,0.2264]
[1758831642474,0.29952,3921.7,3920.6,0.2264]
[1758831642675,0.29952,3921.7,3921.4,2.55009592]
[1758831642977,2.126,3921.6,3920.7,0.46160564]
[1758831643385,2.126,3921.6,3920.6,0.2264]
[1758831643589,2.126,3921.6,3920.9,2.55037002]
[1758831643798,0.6760363,3923.1,3921.0,0.2264]
[1758831643958,0.89499063,3923.4,3921.2,12.96689791]
[1758831644158,0.15710269,3923.4,3922.0,0.792]
[1758831644360,0.4429,3923.7,3922.9,2.54912821]
[1758831644561,2.126,3923.6,3922.3,0.792]
[1758831644777,5.126,3923.6,3923.0,2.54906343]
[1758831644984,5.126,3923.6,3922.4,0.4361]
[1758831645488,2.126,3923.6,3922.8,2.54914182]
[1758831645704,4.693,3924.4,3922.9,0.71650552]
[1758831645998,6.644,3925.8,3922.1,3.0]
[1758831645999,6.819,3924.7,3923.0,1.4545]
[1758831646164,0.4429,3925.0,3923.4,3.792]
[1758831646481,1.34254336,3926.5,3923.4,3.792]
[1758831646482,0.4429,3925.5,3924.5,2.54804572]
[1758831646781,0.4429,3925.5,3924.7,2.54790845]
[1758831646948,0.4429,3926.0,3924.9,2.54783561]
[1758831647292,0.6760363,3927.3,3925.0,0.2518777]
[1758831647471,1.43111473,3927.6,3924.5,6.822]
[1758831647472,0.4429,3926.6,3924.5,6.822]
[1758831647785,0.4429,3926.5,3924.9,2.54783146]
[1758831648005,2.125,3926.4,3924.6,1.2281]
[1758831648213,1.43111473,3927.5,3924.6,1.2281]
[1758831648214,0.6849,3927.0,3924.7,1.4793]
[1758831648373,2.125,3927.0,3924.9,0.792]
[1758831648572,2.125,3927.0,3924.8,5.3873]
[1758831648573,3.6849,3926.9,3924.8,5.3873]
[1758831648805,0.4349,3926.8,3924.9,0.02547835]
[1758831649019,0.4349,3926.8,3924.3,5.54816685]
[1758831649020,3.0,3926.6,3924.3,0.241]
[1758831649204,1.4769,3926.5,3924.0,0.4463]
[1758831649374,0.792,3926.3,3924.4,2.54810099]
[1758831649580,0.6849,3926.2,3924.6,2.54800168]
[1758831649775,3.0,3926.0,3924.0,0.4463]